fUST/lending_fUST_20250614
["ID","MTS","AMOUNT","RATE_DAILY","PERIOD"]
[365774327,1749905447748,-151.0,0.00023863,7]
[365774328,1749905447757,-165.179469,0.00023863,7]
[365774329,1749905447769,-151.0,0.00023863,7]
[365774330,1749905447779,-165.179469,0.00023863,7]
[365774331,1749905447788,-151.51248,0.00023863,7]
[365774332,1749905447798,-1000.0,0.00023863,2]
[365774333,1749905447808,-1000.0,0.00023863,2]
[365774334,1749905447817,-1000.0,0.00023863,2]
[365774335,1749905447827,-1000.0,0.00023863,2]
[365774336,1749905447837,-1000.0,0.00023863,2]
[365774337,1749905447846,-1000.0,0.00023863,2]
[365774338,1749905447855,-1000.0,0.00023863,2]
[365774339,1749905447865,-1000.0,0.00023863,2]
[365774340,1749905447875,-1000.0,0.00023863,2]
[365774341,1749905447964,-1000.0,0.00023863,2]
[365774342,1749905447976,-1000.0,0.00023863,2]
[365774343,1749905447985,-1000.0,0.00023863,2]
[365774344,1749905447996,-1000.0,0.00023863,2]
[365774345,1749905448005,-1000.0,0.00023863,2]
[365774346,1749905448015,-1000.0,0.00023863,2]
[365774347,1749905448025,-1000.0,0.00023863,2]
[365774348,1749905448034,-1000.0,0.00023863,2]
[365774349,1749905448044,-1000.0,0.00023863,2]
[365774350,1749905448054,-1000.0,0.00023863,2]
[365774351,1749905448064,-1000.0,0.00023863,2]
[365774352,1749905448073,-1000.0,0.00023863,2]
[365774353,1749905448083,-490.22144278,0.00023863,2]
[365774354,1749905448093,-37221.035681,0.00023869,2]
[365774355,1749905448102,-151.0,0.00023869,7]
[365774356,1749905448111,-196.048956,0.00023869,7]
[365774357,1749905448121,-196.048956,0.00023869,7]
[365774358,1749905448130,-180.895887,0.00023869,7]
[365774359,1749905448140,-177.85392,0.00023869,7]
[365774360,1749905448150,-177.85392,0.00023869,7]
[365774361,1749905448160,-151.0,0.00023869,7]
[365774362,1749905448169,-165.179469,0.00023869,7]
[365774363,1749905448179,-151.0,0.00023869,7]
[365774364,1749905448189,-165.179469,0.00023869,7]
[365774365,1749905448198,-3000.0,0.0002387,2]
[365774366,1749905448207,-500.0,0.00023873,2]
[365774367,1749905448217,-501.06245016,0.00023873,2]
[365774368,1749905448226,-502.04104999,0.00023873,2]
[365774369,1749905448236,-500.0,0.00023873,2]
[365774370,1749905448245,-500.0,0.00023873,2]
[365774371,1749905448254,-500.0,0.00023873,2]
[365774372,1749905448263,-500.0,0.00023873,2]
[365774373,1749905448273,-500.0,0.00023873,2]
[365774374,1749905448282,-509.52386993,0.00023873,2]
[365774375,1749905448292,-500.0,0.00023873,2]
[365774376,1749905448301,-152.84253909,0.00023873,2]
[365774377,1749905448311,-500.0,0.00023873,2]
[365774378,1749905448321,-600.0,0.00023873,2]
[365774379,1749905448330,-242.91572388,0.00023873,2]
[365774380,1749905448340,-571.27879374,0.00023873,2]
[365774381,1749905448349,-151.0,0.00023873,7]
[365774382,1749905448359,-151.0,0.00023873,7]
[365774383,1749905448369,-756.77808,0.00023873,7]
[365774384,1749905448378,-756.77808,0.00023873,7]
[365774385,1749905448387,-414.028058,0.00023873,7]
[365774386,1749905448397,-414.028058,0.00023873,7]
[365774387,1749905448406,-151.0,0.00023873,7]
[365774388,1749905448415,-151.0,0.00023873,7]
[365774389,1749905448424,-151.0,0.00023873,7]
[365774390,1749905448434,-896.522031,0.00023873,7]
[365774391,1749905448443,-896.522031,0.00023873,7]
[365774392,1749905448453,-218.597546,0.00023873,7]
[365774393,1749905448462,-218.597546,0.00023873,7]
[365774394,1749905448472,-151.0,0.00023873,7]
[365774395,1749905448481,-151.0,0.00023873,7]
[365774396,1749905448490,-151.0,0.00023873,7]
[365774397,1749905448500,-151.0,0.00023873,7]
[365774398,1749905448509,-3000.0,0.0002388,2]
[365774399,1749905448519,-3000.0,0.0002389,2]
[365774400,1749905448528,-310.61159,0.0002389,7]
[365774401,1749905448538,-310.61159,0.0002389,7]
[365774402,1749905448547,-297241.25944257,0.000239,7]
[365774403,1749905448561,-3000.0,0.000239,2]
[365774404,1749905448570,-253.141438,0.000239,7]
[365774405,1749905448579,-151.0,0.000239,7]
[365774406,1749905448588,-16157.53274894,0.000239,7]
[365774407,1749905448701,-7012.48198433,0.000239,7]
[365774408,1749905448713,-524.0,0.000239,7]
[365774409,1749905448938,-151.0,0.00022191,7]
[365774410,1749905448947,-151.0,0.00022191,7]
[365774411,1749905448957,-151.0,0.00022191,7]
[365774412,1749905448967,-151.0,0.00022191,7]
[365774413,1749905448976,-151.0,0.00022465,7]
[365774414,1749905448986,-156.315351,0.00022465,7]
[365774415,1749905448995,-151.0,0.00022465,7]
[365774416,1749905449005,-151.0,0.00022465,7]
[365774417,1749905449015,-11166.22347564,0.00022625,2]
[365774418,1749905449024,-151.0,0.00022739,7]
[365774419,1749905449034,-151.0,0.00022739,7]
[365774420,1749905449043,-151.0,0.00023013,7]
[365774421,1749905449053,-12533.30537164,0.00023265,2]
[365774422,1749905449063,-424.40141186,0.00023265,2]
[365774423,1749905449072,-405.0,0.0002348,2]
[365774424,1749905449082,-460.0,0.00023835,4]
[365774425,1749905449091,-30767.80463217,0.000239,7]
[365774426,1749905449101,-151.0,0.000239,7]
[365774427,1749905449111,-151.0,0.000239,7]
[365774428,1749905449120,-151.0,0.000239,7]
[365774429,1749905449130,-280.633622,0.000239,7]
[365774430,1749905449139,-177.983414,0.000239,7]
[365774431,1749905449148,-177.983414,0.000239,7]
[365774432,1749905449158,-222.368421,0.000239,7]
[365774433,1749905449167,-222.368421,0.000239,7]
[365774434,1749905449177,-169.011373,0.000239,7]
[365774435,1749905449186,-169.011373,0.000239,7]
[365774436,1749905449196,-310.61159,0.000239,7]
[365774437,1749905449206,-310.61159,0.000239,7]
[365774438,1749905449215,-241.846466,0.000239,7]
[365774439,1749905449225,-241.846466,0.000239,7]
[365774440,1749905449235,-151.0,0.000239,7]
[365774441,1749905449244,-151.0,0.000239,7]
[365774442,1749905449255,-756.77808,0.000239,7]
[365774443,1749905449265,-756.77808,0.000239,7]
[365774444,1749905449274,-414.028058,0.000239,7]
[365774445,1749905449283,-414.028058,0.000239,7]
[365774446,1749905449293,-151.0,0.000239,7]
[365774447,1749905449302,-151.0,0.000239,7]
[365774448,1749905449312,-151.0,0.000239,7]
[365774449,1749905449321,-151.0,0.000239,7]
[365774450,1749905449332,-151.0,0.000239,7]
[365774451,1749905449342,-896.522031,0.000239,7]
[365774452,1749905449351,-896.522031,0.000239,7]
[365774453,1749905449361,-218.597546,0.000239,7]
[365774454,1749905449371,-196.048956,0.000239,7]
[365774455,1749905449380,-196.048956,0.000239,7]
[365774456,1749905449389,-196.048956,0.000239,7]
[365774457,1749905449399,-196.048956,0.000239,7]
[365774458,1749905449408,-151.0,0.000239,7]
[365774459,1749905449418,-151.0,0.000239,7]
[365774460,1749905449428,-177.85392,0.000239,7]
[365774461,1749905449438,-177.85392,0.000239,7]
[365774462,1749905449448,-177.85392,0.000239,7]
[365774463,1749905449457,-177.85392,0.000239,7]
[365774464,1749905449467,-151.0,0.000239,7]
[365774465,1749905449477,-151.0,0.000239,7]
[365774466,1749905449487,-165.179469,0.000239,7]
[365774467,1749905449497,-165.179469,0.000239,7]
[365774468,1749905449507,-154.894672,0.000239,7]
[365774469,1749905449516,-165.179469,0.000239,7]
[365774470,1749905449526,-165.179473,0.000239,7]
[365774471,1749905449535,-2128.18319222,0.000239,2]
[365774472,1749905449545,-3000.0,0.0002391,2]
[365774473,1749905449555,-3000.0,0.0002392,2]
[365774474,1749905449564,-3000.0,0.0002393,2]
[365774475,1749905449654,-222.368421,0.0002393,7]
[365774476,1749905449665,-222.368421,0.0002393,7]
[365774477,1749905449675,-3000.0,0.0002394,2]
[365774478,1749905449685,-3000.0,0.0002395,2]
[365774479,1749905449698,-151.0,0.0002395,7]
[365774480,1749905449708,-896.522031,0.0002395,7]
[365774481,1749905449717,-896.522031,0.0002395,7]
[365774482,1749905449727,-151.0,0.0002395,7]
[365774483,1749905449737,-151.0,0.0002395,7]
[365774484,1749905449748,-3000.0,0.0002396,2]
[365774485,1749905449758,-151.0,0.0002396,7]
[365774486,1749905449770,-276.631501,0.0002396,7]
[365774487,1749905449782,-756.77808,0.0002396,7]
[365774488,1749905449792,-756.77808,0.0002396,7]
[365774489,1749905449802,-414.028058,0.0002396,7]
[365774490,1749905449811,-414.028058,0.0002396,7]
[365774491,1749905449821,-151.0,0.0002396,7]
[365774492,1749905449830,-151.0,0.0002396,7]
[365774493,1749905449839,-218.597546,0.0002396,7]
[365774494,1749905449848,-218.597546,0.0002396,7]
[365774495,1749905449858,-310.61159,0.00023969,7]
[365774496,1749905449868,-310.61159,0.00023969,7]
[365774497,1749905449877,-3000.0,0.0002397,2]
[365774498,1749905449887,-169.011373,0.0002397,7]
[365774499,1749905449896,-169.011373,0.0002397,7]
[365774500,1749905449906,-151.0,0.00023973,7]
[365774501,1749905449916,-196.048956,0.00023973,7]
[365774502,1749905449926,-196.048956,0.00023973,7]
[365774503,1749905449936,-177.85392,0.00023973,7]
[365774504,1749905449946,-177.85392,0.00023973,7]
[365774505,1749905449956,-3000.0,0.0002398,2]
[365774506,1749905449966,-3000.0,0.0002399,2]
[365774507,1749905449976,-1663.98628389,0.00024,2]
[365774508,1749905449985,-113246.58352156,0.00024,2]
[365774509,1749905449995,-10150.0,0.00024,30]
[365774510,1749905450005,-3000.0,0.00024,2]
[365774511,1749905450015,-151.0,0.00024,7]
[365774512,1749905450024,-151.0,0.00024,7]
[365774513,1749905450034,-151.0,0.00024,7]
[365774514,1749905450044,-256.720747,0.00024,7]
[365774515,1749905450054,-151.0,0.00024,7]
[365774516,1749905450064,-151.0,0.00024,7]
[365774517,1749905450074,-151.0,0.00024,7]
[365774518,1749905450083,-151.0,0.00024,7]
[365774519,1749905450093,-151.0,0.00024,7]
[365774520,1749905450103,-151.0,0.00024,7]
[365774521,1749905450114,-177.983414,0.00024,7]
[365774522,1749905450123,-177.983414,0.00024,7]
[365774523,1749905450133,-177.983414,0.00024,7]
[365774524,1749905450149,-177.983414,0.00024,7]
[365774525,1749905450160,-222.368421,0.00024,7]
[365774526,1749905450170,-222.368421,0.00024,7]
[365774527,1749905450180,-222.368421,0.00024,7]
[365774528,1749905450190,-222.368421,0.00024,7]
[365774529,1749905450200,-169.011373,0.00024,7]
[365774530,1749905450210,-169.011373,0.00024,7]
[365774531,1749905450220,-169.011373,0.00024,7]
[365774532,1749905450229,-169.011373,0.00024,7]
[365774533,1749905450239,-310.61159,0.00024,7]
[365774534,1749905450249,-310.61159,0.00024,7]
[365774535,1749905450259,-241.846466,0.00024,7]
[365774536,1749905450269,-241.846466,0.00024,7]
[365774537,1749905450279,-310.61159,0.00024,7]
[365774538,1749905450288,-310.61159,0.00024,7]
[365774539,1749905450298,-241.846466,0.00024,7]
[365774540,1749905450308,-241.846466,0.00024,7]
[365774541,1749905450318,-153.254637,0.00024,7]
[365774542,1749905450327,-756.77808,0.00024,7]
[365774543,1749905450338,-756.77808,0.00024,7]
[365774544,1749905450348,-304754.40321309,0.00024,2]
[365774545,1749905450357,-414.028058,0.00024,7]
[365774546,1749905450367,-414.028058,0.00024,7]
[365774547,1749905450377,-151.0,0.00024,7]
[365774548,1749905450387,-151.0,0.00024,7]
[365774549,1749905450397,-152.175404,0.00024,7]
[365774550,1749905450407,-152.89444,0.00024,7]
[365774551,1749905450416,-151.0,0.00024,7]
[365774552,1749905450426,-896.522031,0.00024,7]
[365774553,1749905450435,-896.522031,0.00024,7]
[365774554,1749905450444,-896.522031,0.00024,7]
[365774555,1749905450453,-896.522031,0.00024,7]
[365774556,1749905450463,-218.597546,0.00024,7]
[365774557,1749905450473,-218.597546,0.00024,7]
[365774558,1749905450483,-11215.7887941,0.00024,11]
[365774559,1749905450495,-196.048956,0.00024,7]
[365774560,1749905450506,-196.048956,0.00024,7]
[365774561,1749905450515,-196.048956,0.00024,7]
[365774562,1749905450526,-196.048956,0.00024,7]
[365774563,1749905450536,-196.048956,0.00024,7]
[365774564,1749905450546,-196.048956,0.00024,7]
[365774565,1749905450556,-151.0,0.00024,7]
[365774566,1749905450566,-151.0,0.00024,7]
[365774567,1749905450576,-177.85392,0.00024,7]
[365774568,1749905450585,-177.85392,0.00024,7]
[365774569,1749905450594,-177.85392,0.00024,7]
[365774570,1749905450605,-177.85392,0.00024,7]
[365774571,1749905450615,-177.85392,0.00024,7]
[365774572,1749905450624,-177.85392,0.00024,7]
[365774573,1749905450633,-835.41710878,0.00024,7]
[365774574,1749905450643,-229.82479369,0.00024,7]
[365774575,1749905450652,-315.3423008,0.00024,30]
[365774576,1749905450662,-639.0,0.00024,2]
[365774577,1749905450672,-213.28201367,0.00024,30]
[365774578,1749905450682,-160.0,0.00024,7]
[365774579,1749905450696,-845.10789306,0.00024,30]
[365774580,1749905450706,-424.40141186,0.00024,7]
[365774581,1749905450716,-2128.18319221,0.00024008,2]
[365774582,1749905450726,-3000.0,0.0002401,2]
[365774583,1749905450736,-3000.0,0.0002402,2]
[365774584,1749905450746,-3000.0,0.0002403,2]
[365774585,1749905450755,-80.01676519,0.0002404,2]
[365774586,1749905450773,-2919.98323481,0.0002404,2]
[365774587,1749905450783,-806.39623114,0.0002405,2]
[365774588,1749905450795,-662.5865665,0.0002405,2]
[365774589,1749905450848,-151.0,0.00022191,7]
[365774590,1749905450857,-151.0,0.00023287,7]
[365774591,1749905450866,-151.0,0.00023356,7]
[365774592,1749905450876,-36.78642268,0.00023561,7]
[365774593,1749905450986,-151.0,0.00022191,7]
[365774594,1749905450996,-103.45860606,0.00022465,7]
[365774595,1749905451013,-47.54139394,0.00022465,7]
[365774596,1749905451022,-151.0,0.00022465,7]
[365774597,1749905451032,-138.38105368,0.00022739,7]
[365774598,1749905451106,-41.1101109,0.00021917,4]
[365774599,1749905451119,-418.8898891,0.00021917,4]
[365774600,1749905451128,-12.61894632,0.00022739,7]
[365774601,1749905451138,-151.0,0.00022739,7]
[365774602,1749905451147,-817.55,0.0002299,10]
[365774603,1749905451157,-151.0,0.00023013,7]
[365774604,1749905451166,-151.0,0.00023287,7]
[365774605,1749905451175,-169.699762,0.00023356,7]
[365774606,1749905451184,-114.21357732,0.00023561,7]
[365774607,1749905451194,-1531.01720236,0.0002405,2]
[365774608,1749905451203,-3000.0,0.0002406,2]
[365774609,1749905451212,-2087.85952944,0.0002407,2]
[365774610,1749905451224,-912.14047056,0.0002407,2]
[365774611,1749905451234,-3000.0,0.0002408,2]
[365774612,1749905451243,-414.028058,0.0002408,7]
[365774613,1749905451254,-414.028058,0.0002408,7]
[365774614,1749905451264,-756.77808,0.00024088,7]
[365774615,1749905451273,-756.77808,0.00024088,7]
[365774616,1749905451282,-756.77808,0.00024088,7]
[365774617,1749905451292,-756.77808,0.00024088,7]
[365774618,1749905451376,-414.028058,0.00024088,7]
[365774619,1749905451386,-414.028058,0.00024088,7]
[365774620,1749905451396,-151.0,0.00024088,7]
[365774621,1749905451406,-896.522031,0.00024088,7]
[365774622,1749905451415,-896.522033,0.00024088,7]
[365774623,1749905451424,-218.597546,0.00024088,7]
[365774624,1749905451435,-218.597546,0.00024088,7]
[365774625,1749905451444,-196.048956,0.00024088,7]
[365774626,1749905451454,-196.048956,0.00024088,7]
[365774627,1749905451464,-196.048956,0.00024088,7]
[365774628,1749905451474,-196.048948,0.00024088,7]
[365774629,1749905451483,-151.0,0.00024088,7]
[365774630,1749905451493,-151.0,0.00024088,7]
[365774631,1749905451504,-177.85392,0.00024088,7]
[365774632,1749905451513,-177.85392,0.00024088,7]
[365774633,1749905451522,-177.85392,0.00024088,7]
[365774634,1749905451532,-177.853925,0.00024088,7]
[365774635,1749905451541,-340.45809655,0.00024088,14]
[365774639,1749905492154,10000.0,0.00024658,120]
[365774640,1749905499323,10000.0,0.00024658,120]
[365774641,1749905506392,10000.0,0.00024658,120]
[365774642,1749905513766,10000.0,0.00024658,120]
[365774643,1749905520509,10000.0,0.00024658,120]
[365774644,1749905528463,10000.0,0.00024658,120]
[365774645,1749905534396,167.27191478,0.00020821,2]
[365774646,1749905536171,10000.0,0.00024658,120]
[365774647,1749905544570,10000.0,0.00024658,120]
[365774648,1749905552574,10000.0,0.00024658,120]
[365774649,1749905559268,10000.0,0.00024658,120]
[365774650,1749905566653,10000.0,0.00024658,120]
[365774652,1749905570454,334.161254,0.00013699,2]
[365774653,1749905574622,10000.0,0.00024658,120]
[365774654,1749905582525,10000.0,0.00024658,120]
[365774655,1749905589032,10000.0,0.00024658,120]
[365774656,1749905596042,10000.0,0.00024658,120]
[365774658,1749905605214,10000.0,0.00024658,120]
[365774659,1749905612944,10000.0,0.00024658,120]
[365774660,1749905620420,10000.0,0.00024658,120]
[365774661,1749905627266,10000.0,0.00024658,120]
[365774662,1749905634330,10000.0,0.00024658,120]
[365774666,1749905649823,10000.0,0.00024658,120]
[365774670,1749905656153,10000.0,0.00024658,120]
[365774671,1749905663185,10000.0,0.00024658,120]
[365774675,1749905670501,10000.0,0.00024658,120]
[365774678,1749905676831,10000.0,0.00024658,120]
[365774679,1749905683096,10000.0,0.00024658,120]
[365774681,1749905689448,10000.0,0.00024658,120]
[365774682,1749905695514,10000.0,0.00024658,120]
[365774683,1749905702300,10000.0,0.00024658,120]
[365774684,1749905708797,10000.0,0.00024658,120]
[365774685,1749905715181,10000.0,0.00024658,120]
[365774686,1749905721370,10000.0,0.00024658,120]
[365774687,1749905728235,10000.0,0.00024658,120]
[365774688,1749905735347,10000.0,0.00024658,120]
[365774689,1749905741620,10000.0,0.00024658,120]
[365774690,1749905749804,10000.0,0.00024658,120]
[365774692,1749905770045,3508.0,0.00024658,120]
[365774697,1749905865445,151.0,0.00013699,2]
[365774698,1749905867614,164.41863091,0.00013699,2]
[365774706,1749906043698,183.38125239,0.00013699,2]
[365774719,1749906307106,951.13769293,0.0002,2]
[365774731,1749906387740,1066.67996996,0.00016938,2]
[365774734,1749906405010,172.684107,0.00019795,2]
[365774735,1749906409781,1742.0,0.0002,2]
[365774737,1749906434186,2000.0,0.00024,120]
[365774741,1749906441109,-154.15271675,0.00020087,2]
[365774742,1749906441131,-166.6284359,0.00020087,2]
[365774743,1749906441153,-334.161254,0.00020187,2]
[365774744,1749906441176,-500.0,0.00020187,2]
[365774745,1749906441202,-500.0,0.00020187,2]
[365774746,1749906441223,-500.0,0.00020187,2]
[365774747,1749906441249,-340.644829,0.00020249,2]
[365774748,1749906441272,-1200.0,0.00020293,2]
[365774749,1749906441293,-200.72629774,0.00020294,2]
[365774750,1749906441315,-500.0,0.0002078,2]
[365774751,1749906441336,-160.0,0.00020782,2]
[365774752,1749906441357,-300.0,0.00020788,2]
[365774753,1749906441378,-505.3690862,0.00020839,2]
[365774754,1749906441400,-382.1258735,0.00020909,2]
[365774755,1749906450114,-6682.66182203,0.00020909,2]
[365774756,1749906451070,-2072.51743158,0.00020909,2]
[365774757,1749906460944,-2028.91834853,0.00020909,2]
[365774758,1749906460966,-300.0,0.00020919,2]
[365774759,1749906460988,-300.0,0.00020919,2]
[365774760,1749906461013,-160.022,0.00020921,2]
[365774761,1749906461035,-9087.05965147,0.00020922,2]
[365774770,1749906549139,-500.0,0.0002078,2]
[365774771,1749906549162,-1499.70197402,0.00020922,2]
[365774781,1749906632610,-5741.114,0.00020352,2]
[365774791,1749906632720,-19158.886,0.00020352,2]
[365774792,1749906632730,-300.0,0.00020921,2]
[365774793,1749906632739,-300.0,0.00020921,2]
[365774794,1749906632748,-300.0,0.00020921,2]
[365774795,1749906632758,-1200.0,0.00020921,2]
[365774796,1749906632767,-168.0,0.00021295,2]
[365774797,1749906632776,-1471.0,0.00021307,2]
[365774798,1749906632786,-1471.0,0.00021505,2]
[365774799,1749906632796,-1323.16,0.00021526,2]
[365774801,1749906632805,-1471.0,0.00021555,2]
[365774803,1749906632815,-164.7498231,0.00021717,2]
[365774805,1749906632824,-1471.0,0.00021755,2]
[365774807,1749906632833,-1471.0,0.00021797,2]
[365774809,1749906632842,-4909.09703366,0.00021817,2]
[365774811,1749906632851,-1580.99945933,0.000219,6]
[365774813,1749906632860,-189.6,0.00021907,3]
[365774815,1749906632870,-568.8,0.00021907,3]
[365774817,1749906632880,-177.96,0.00021907,10]
[365774819,1749906632890,-300.0,0.00021915,2]
[365774821,1749906632900,-390.24333677,0.00021915,2]
[365774823,1749906632909,-386.88559323,0.00021915,2]
[365774825,1749906632919,-500.0,0.00021915,2]
[365774827,1749906632930,-500.0,0.00021915,2]
[365774829,1749906632939,-239.3285994,0.00021915,2]
[365774831,1749906632949,-500.0,0.00021915,2]
[365774833,1749906632958,-500.0,0.00021915,2]
[365774835,1749906632968,-500.0,0.00021916,2]
[365774837,1749906632977,-500.0,0.00021916,2]
[365774839,1749906632986,-500.0,0.00021916,2]
[365774841,1749906632996,-500.0,0.00021916,2]
[365774843,1749906633005,-500.0,0.00021916,2]
[365774846,1749906633020,-500.0,0.00021916,2]
[365774849,1749906633035,-158.46546537,0.00021916,2]
[365774851,1749906633044,-500.0,0.00021916,2]
[365774853,1749906633055,-500.0,0.00021916,2]
[365774855,1749906633065,-250.0,0.00021916,2]
[365774857,1749906633075,-155.0,0.00021916,2]
[365774859,1749906633085,-500.0,0.00021916,2]
[365774861,1749906633095,-500.0,0.00021916,2]
[365774863,1749906633105,-500.0,0.00021916,2]
[365774865,1749906633115,-338.52002054,0.00021916,2]
[365774867,1749906633124,-500.0,0.00021916,2]
[365774869,1749906633134,-160.0,0.00021916,2]
[365774871,1749906633145,-500.0,0.00021917,4]
[365774872,1749906633155,-442.40101452,0.00021917,4]
[365774873,1749906633165,-440.0,0.00021917,4]
[365774874,1749906633174,-440.0,0.00021917,4]
[365774875,1749906633185,-440.0,0.00021917,4]
[365774876,1749906633195,-421.85729242,0.00021917,4]
[365774877,1749906633207,-460.0,0.00021917,4]
[365774878,1749906633219,-541.4714983,0.00021917,4]
[365774879,1749906633229,-460.0,0.00021917,4]
[365774880,1749906633239,-396.67976486,0.00021917,4]
[365774881,1749906633249,-460.0,0.00021917,4]
[365774882,1749906633259,-460.0,0.00021917,4]
[365774883,1749906633269,-451.84824957,0.00021917,4]
[365774884,1749906633280,-458.09674538,0.00021917,4]
[365774885,1749906633290,-460.0,0.00021917,4]
[365774886,1749906633300,-460.0,0.00021917,4]
[365774887,1749906633312,-414.25997631,0.00021917,4]
[365774888,1749906633322,-460.0,0.00021917,4]
[365774889,1749906633333,-460.0,0.00021917,4]
[365774890,1749906633343,-460.0,0.00021917,4]
[365774891,1749906633353,-204.31447388,0.00021917,4]
[365774892,1749906633364,-454.62969251,0.00021917,4]
[365774893,1749906633374,-359.63912518,0.00021917,4]
[365774895,1749906633384,-460.0,0.00021917,4]
[365774897,1749906633394,-406.15760797,0.00021917,4]
[365774898,1749906633405,-460.0,0.00021917,4]
[365774899,1749906633415,-409.68464138,0.00021917,4]
[365774900,1749906633425,-511.08107676,0.00021917,4]
[365774901,1749906633435,-460.0,0.00021917,4]
[365774902,1749906633446,-460.0,0.00021917,4]
[365774903,1749906633457,-450.0,0.00021917,4]
[365774904,1749906633467,-460.0,0.00021917,4]
[365774905,1749906633478,-443.79035073,0.00021917,4]
[365774906,1749906633488,-303.20136416,0.00021917,4]
[365774907,1749906633499,-288.14995462,0.00021917,4]
[365774908,1749906633510,-460.0,0.00021917,4]
[365774909,1749906633520,-460.0,0.00021917,4]
[365774910,1749906633530,-460.0,0.00021917,4]
[365774911,1749906633540,-460.0,0.00021917,4]
[365774912,1749906633550,-460.0,0.00021917,4]
[365774913,1749906633560,-460.0,0.00021917,4]
[365774914,1749906633570,-460.0,0.00021917,4]
[365774915,1749906633580,-460.0,0.00021917,4]
[365774916,1749906633590,-410.39311907,0.00021917,4]
[365774917,1749906633600,-460.0,0.00021917,4]
[365774918,1749906633610,-460.0,0.00021917,4]
[365774919,1749906633620,-460.0,0.00021917,4]
[365774920,1749906633629,-460.0,0.00021917,4]
[365774921,1749906633639,-460.0,0.00021917,4]
[365774922,1749906633652,-460.0,0.00021917,4]
[365774923,1749906633662,-460.0,0.00021917,4]
[365774924,1749906633671,-460.0,0.00021917,4]
[365774925,1749906633681,-353.68248777,0.00021917,4]
[365774926,1749906633690,-460.0,0.00021917,4]
[365774927,1749906633700,-460.0,0.00021917,4]
[365774928,1749906633710,-460.0,0.00021917,4]
[365774929,1749906633719,-437.32751825,0.00021917,4]
[365774930,1749906633729,-460.0,0.00021917,4]
[365774931,1749906633739,-150.97819592,0.00021917,4]
[365774932,1749906633749,-460.0,0.00021917,4]
[365774933,1749906633759,-402.34893282,0.00021917,4]
[365774934,1749906633768,-460.0,0.00021917,4]
[365774935,1749906633778,-460.0,0.00021917,4]
[365774936,1749906633788,-460.0,0.00021917,4]
[365774937,1749906633798,-460.0,0.00021917,4]
[365774938,1749906633808,-460.0,0.00021917,4]
[365774939,1749906633818,-460.0,0.00021917,4]
[365774940,1749906633827,-432.2685416,0.00021917,4]
[365774941,1749906633837,-460.0,0.00021917,4]
[365774942,1749906633847,-460.0,0.00021917,4]
[365774943,1749906633856,-460.0,0.00021917,4]
[365774944,1749906633866,-460.0,0.00021917,4]
[365774945,1749906633875,-460.0,0.00021917,4]
[365774946,1749906633884,-536.32536451,0.00021917,4]
[365774947,1749906633894,-460.0,0.00021917,4]
[365774948,1749906633903,-460.0,0.00021917,4]
[365774949,1749906633912,-460.0,0.00021917,4]